Cogmind - Beta 16 @@@ ROGUE MODE // 2025.10.24 @ 23:25:52 Player: Thqwib-Linux Result: Destroyed by D-53 Grenadier with Mini Grenade Launcher Performance ------------- Evolutions (0) 0 Regions Visited (4) 800 Robots Destroyed (14) 70 Value Destroyed (241) 241 Prototype IDs (23) 460 Alien Tech Used (0) 0 Bonus (307) 307 TOTAL SCORE: 1878 Bonus ------- Follower Combat Kills 7 Aligned with FarCom 300 Cogmind --------- Core Integrity 0/250 Matter 234/300 Energy 99/100 System Corruption 0% Temperature Cool (0) Movement Core (50) Location -9/Mines Parts ------- > --- POWER (1) -------- (None) > --- PROPULSION (2) --- (None) > --- UTILITY (2) ------ (None) > --- WEAPON (2) ------- (None) > --- INVENTORY (5) ---- Aluminum Leg Aluminum Leg Scrap Suit Peak State ------------ > --- POWER ------------ Ion Engine > --- PROPULSION ------- Aluminum Leg Flexi-carbon Leg > --- UTILITY ---------- Medium Storage Unit Signal Interpreter > --- WEAPON ----------- Assault Rifle Light Cannon > --- INVENTORY -------- Light Ion Engine Makeshift Power Source Aluminum Leg Aluminum Leg Scrap Suit Modified TNC Phase Shifter Light Armor Plating Small Laser [Rating: 13] Favorites ----------- Power Ion Engine Engine Ion Engine Propulsion Aluminum Leg Leg Aluminum Leg Utility Medium Storage Unit Device Sensor Array Storage Medium Storage Unit Processor Signal Interpreter Weapon Assault Rifle Energy Gun Small Laser Ballistic Gun Assault Rifle Ballistic Cannon Light Cannon Build | -11 -10 -10 -10 -9 ------- Run | Yrd Mat Min Exi Min Slots Evolved . | . . . . . Power . | . . . . . Propulsion . | . . . . . Utility . | . . . . . Weapon . | . . . . . Parts Attached 10 | . 5 1 . 4 Power 2 | . . 1 . 1 Engine 2 | . . 1 . 1 Core . | . . . . . Reactor . | . . . . . Propulsion 2 | . . . . 2 Treads . | . . . . . Leg 2 | . . . . 2 Wheel . | . . . . . Hover . | . . . . . Flight . | . . . . . Utility 4 | . 4 . . . Device 2 | . 2 . . . Storage 1 | . 1 . . . Processor 1 | . 1 . . . Hackware . | . . . . . Protection . | . . . . . Artifact . | . . . . . Weapon 2 | . 1 . . 1 Energy Gun 1 | . . . . 1 Energy Cannon . | . . . . . Ballistic Gun . | . . . . . Ballistic Cannon 1 | . 1 . . . Launcher . | . . . . . Special Weapon . | . . . . . Impact Weapon . | . . . . . Slashing Weapon . | . . . . . Piercing Weapon . | . . . . . Special Melee Weapon . | . . . . . Unidentified Prototypes . | . . . . . Parts Lost 8 | . . . . 8 Power 2 | . . . . 2 Propulsion 3 | . . . . 3 Utility . | . . . . . Weapon 3 | . . . . 3 Highest Loss Streak 6 | . . . . 6 To Critical Strikes . | . . . . . Average Backups 6 | 5 4 7 8 8 Power 2 | 1 1 2 3 2 Propulsion 1 | 3 1 2 2 1 Utility 1 | . . 1 2 3 Weapon 1 | 1 1 1 1 1 Tool/Special . | . . . . . Unused Backups 15 | . 6 . . 9 Power 3 | . 1 . . 2 Propulsion 4 | . 2 . . 2 Utility 5 | . 1 . . 4 Weapon 3 | . 2 . . 1 Tool/Special . | . . . . . Average Slot Usage (%) 99 | . 99 100 100 98 Engine 13 | . 14 14 14 13 Leg 27 | . 28 28 28 27 Device 1 | . 7 . . . Storage 14 | . 14 14 14 14 Processor 11 | . 5 14 14 14 Energy Gun 2 | . 10 . . . Ballistic Gun 14 | . 14 14 14 14 Ballistic Cannon 11 | . 3 14 14 13 Peak Build Rating 13 | 6 7 8 9 13 Average Rating 7 | 6 6 7 8 9 On Entrance 7 | 6 6 7 8 9 Avg Prop Armor Cover (%) . | . . . . . Naked Turns 1 | . . . . 1 Heaviest Build 20 | 13 20 20 20 20 Greatest Support 30 | 20 20 20 20 30 Greatest Overweight (x) 4 | . . . . 4 Average Overweight (x) . | . . . . . Largest Inventory Capacity 10 | 8 10 10 10 10 Average Capacity 9 | 8 9 10 10 9 Most Carried 10 | 5 7 9 10 10 Average Carried 7 | 3 4 7 9 9 Final Capacity 10 | 8 10 10 10 5 Final Carried 10 | 2 6 9 10 4 Class Distribution -------------------- 100% | Mutant Dominant Class ---------------- Mutant | -10/Materials Mutant | -10/Mines Mutant | -10/Exiles Mutant | -9/Mines Resources | -11 -10 -10 -10 -9 ----------- Run | Yrd Mat Min Exi Min Matter Collected 449 | 200 20 188 . 41 Remotely . | . . . . . Salvage Created 328 | . 148 136 . 44 Parts 18 | . 8 10 . . Haulers Intercepted . | . . . . . Recyclers Shooed . | . . . . . Parts Field Recycled . | . . . . . Retrieved Matter . | . . . . . Parts Self-Destructed . | . . . . . Prevented . | . . . . . Parts Restored . | . . . . . Kills | -11 -10 -10 -10 -9 ------- Run | Yrd Mat Min Exi Min Combat Hostiles Destroyed 18 | . 6 7 . 5 Guns 16 | . 6 6 . 4 Cannons 2 | . . 1 . 1 Classes Destroyed 4 | . 3 . . 1 Operator 1 | . 1 . . . Swarmer 10 | . 5 5 . . Grunt 3 | . 1 2 . . Assembled 5 | . . . . 5 Best Kill Streak 5 | . 5 3 . 5 Combat Bots Only 5 | . 5 3 . 5 Max Kills in Single Turn 2 | . 2 1 . 1 Gunslinging 1 | . 1 . . . Exploded . | . . . . . Melee . | . . . . . Uniques/NPCs Destroyed . | . . . . . Combat | -11 -10 -10 -10 -9 -------- Run | Yrd Mat Min Exi Min Hostile Shots Fired 83 | . 18 31 . 34 Missed 31 | . 8 11 . 12 Hits 52 | . 10 20 . 22 Melee 3 | . . . . 3 Projectile 49 | . 10 20 . 19 AOE 16 | . . . . 16 Damage Taken 1091 | . 85 194 . 812 Core 265 | . 17 59 . 189 Absorbed by Shields . | . . . . . Core Remaining (%) 100 | 100 . . . . Volleys Fired 45 | . 12 18 . 15 Largest 2 | . 2 2 . 2 Hottest 60 | . 60 50 . 60 Shots Fired 89 | . 24 36 . 29 Gun 58 | . 24 18 . 16 Cannon 31 | . . 18 . 13 Launcher . | . . . . . Special . | . . . . . Kinetic 76 | . 12 36 . 28 Thermal 13 | . 12 . . 1 Explosive . | . . . . . Electromagnetic . | . . . . . Robot Hit Streak 7 | . 4 6 . 7 Robot Miss Streak 4 | . 2 4 . 2 Penetration Max . | . . . . . Secondary Targets 1 | . 1 . . . Max Gunslinging Chain 1 | . 1 . . . Shots Hit Robots 50 | . 15 17 . 18 Core Hits 25 | . 9 8 . 8 Critical Kills . | . . . . . Critical Parts Destroyed 1 | . . . . 1 Critical Strikes 1 | . . . . 1 Destroy 1 | . . . . 1 Melee Attacks . | . . . . . Impact . | . . . . . Slashing . | . . . . . Piercing . | . . . . . Sneak Attacks . | . . . . . Combat Hostiles . | . . . . . Follow-up Attacks . | . . . . . Damage Inflicted 727 | . 175 273 . 279 Guns 443 | . 175 130 . 138 Cannons 284 | . . 143 . 141 Explosions . | . . . . . Melee . | . . . . . Ramming . | . . . . . Kinetic 652 | . 100 273 . 279 Thermal 75 | . 75 . . . Explosive . | . . . . . Electromagnetic . | . . . . . Impact . | . . . . . Slashing . | . . . . . Piercing . | . . . . . Highest Corruption . | . . . . . Average Corruption . | . . . . . Corruption Purged . | . . . . . Corruption Blocked . | . . . . . Overload Shots . | . . . . . Overflow Damage . | . . . . . Projectiles . | . . . . . Explosions . | . . . . . Melee . | . . . . . Knockbacks 4 | . . 3 . 1 Impact . | . . . . . Kinetic 4 | . . 3 . 1 Secondary . | . . . . . Self-Inflicted Damage . | . . . . . Shots . | . . . . . Rammed . | . . . . . Targets Rammed 1 | . . 1 . . Kicked 1 | . . 1 . . Crushed . | . . . . . Highest Temperature 6 | . 6 5 . . Average Temperature 4 | . 6 2 . . Received Heat Transfer 60 | . 6 54 . . Siege Activations . | . . . . . Martial Activations . | . . . . . Shielding Activations . | . . . . . Robots Disrupted . | . . . . . Combat Hostiles . | . . . . . Robots Corrupted . | . . . . . Combat Hostiles . | . . . . . Parts Fried . | . . . . . Impact Corruptions . | . . . . . Robots Melted . | . . . . . Combat Hostiles . | . . . . . Parts Melted . | . . . . . Heat Transferred 175 | . 175 . . . Parts Sabotaged . | . . . . . Parts Stolen . | . . . . . Parts Stripped . | . . . . . Power Chain Reactions . | . . . . . Alert | -11 -10 -10 -10 -9 ------- Run | Yrd Mat Min Exi Min Maximum Alert Level . | . . . . . Low Security (%) 100 | 100 100 100 . 100 Level 1 . | . . . . . Level 2 . | . . . . . Level 3 . | . . . . . Level 4 . | . . . . . Level 5 . | . . . . . High Security . | . . . . . Max Security . | . . . . . Peak Influence 121 | . 121 91 . . Initial . | . . . . . Average 23 | . 43 19 . . Influence Increases 430 | . 175 255 . . Destroy 0b10 Robot/C 280 | . 120 160 . . Destroy 0b10 Robot/NC 5 | . 5 . . . Destroy Leader 40 | . 10 30 . . Allied During Kill 5 | . . 5 . . Successful Hack 9 | . 9 . . . Disable Machine 15 | . . 15 . . Destroy Structure 1 | . 1 . . . Partial Spotted 15 | . 15 . . . Lose Combat Pursuer 60 | . 15 45 . . Influence Decreases 430 | . 175 255 . . Time Decay 410 | . 175 235 . . Lost Ally 20 | . . 20 . . Squads Dispatched 1 | . 1 . . . Investigation . | . . . . . Extermination . | . . . . . Reinforcement 1 | . 1 . . . Assault . | . . . . . Garrison . | . . . . . Intercept . | . . . . . Searches Triggered . | . . . . . Construction Impeded . | . . . . . Haulers Reinforced . | . . . . . Active Scanning Responses . | . . . . . Cargo Convoy Interrupts . | . . . . . Stealth | -11 -10 -10 -10 -9 --------- Run | Yrd Mat Min Exi Min Distress Signals 1 | . 1 . . . Communications Jammed . | . . . . . Distress Signals . | . . . . . Times Spotted 31 | . 13 10 . 8 Peak Tracking Total 6 | . 5 3 . 6 Tactical Retreats 3 | . 1 1 . 1 Traps | -11 -10 -10 -10 -9 ------- Run | Yrd Mat Min Exi Min Traps Triggered . | . . . . . Indirectly . | . . . . . Trap Hack Attempts . | . . . . . Triggered . | . . . . . Disarmed . | . . . . . Reprogrammed . | . . . . . Reused . | . . . . . Traps Extracted . | . . . . . Installed . | . . . . . Triggered . | . . . . . Machines | -11 -10 -10 -10 -9 ---------- Run | Yrd Mat Min Exi Min Machines Disabled 1 | . . 1 . . Max in Single Turn . | . . . . . Machines Repaired . | . . . . . Machines Dismantled . | . . . . . Machines Sabotaged . | . . . . . Overloaded Fab Kills . | . . . . . Hacking | -11 -10 -10 -10 -9 --------- Run | Yrd Mat Min Exi Min Machines Accessed 4 | . 3 . 1 . Terminals 3 | . 3 . . . Fabricators . | . . . . . Repair Stations . | . . . . . Recycling Units . | . . . . . Scanalyzers . | . . . . . Garrison Access . | . . . . . Total Hacks 12 | . 11 . 1 . Successful 5 | . 4 . 1 . Failed 6 | . 6 . . . Catastrophic . | . . . . . Database Lockouts 1 | . 1 . . . Manual 14 | . 13 . 1 . Terminals 11 | . 11 . . . Fabricators . | . . . . . Repair Stations . | . . . . . Recycling Units . | . . . . . Scanalyzers . | . . . . . Garrison Access . | . . . . . Terminal Hacks 3 | . 2 . 1 . Robot Analysis 1 | . 1 . . . Zone Layout 1 | . 1 . . . Proto ID Catalog 1 | . . . 1 . Fabricator Hacks . | . . . . . Repair Station Hacks . | . . . . . Recycling Unit Hacks . | . . . . . Scanalyzer . | . . . . . Garrison Access Hacks . | . . . . . Unauthorized Hacks 2 | . 2 . . . Terminals 2 | . 2 . . . Botnet 2 | . 2 . . . Fabricators . | . . . . . Repair Stations . | . . . . . Recycling Units . | . . . . . Scanalyzers . | . . . . . Garrison Access . | . . . . . Data Cores Recovered 1 | . 1 . . . Used . | . . . . . Hacking Detections 3 | . 3 . . . Full Trace Events . | . . . . . Feedback Events . | . . . . . Feedback Blocked . | . . . . . Robot Schematics Acquired . | . . . . . Robots Built . | . . . . . Authchips . | . . . . . Time . | . . . . . Total Robot Build Rating . | . . . . . Part Schematics Acquired . | . . . . . Parts Built . | . . . . . Authchips . | . . . . . Time . | . . . . . Total Part Build Rating . | . . . . . Part Studies Acquired . | . . . . . Parts Repaired . | . . . . . Time . | . . . . . Parts Recycled . | . . . . . Recycled Matter . | . . . . . Retrieved Matter . | . . . . . Retrieved Components . | . . . . . Parts Scanalyzed . | . . . . . Part Schematics Acquired . | . . . . . Parts Damaged . | . . . . . Bothacking | -11 -10 -10 -10 -9 ------------ Run | Yrd Mat Min Exi Min Used RIF Installer . | . . . . . Robots Hacked . | . . . . . Non-combat . | . . . . . Combat . | . . . . . Robot Hacks Applied . | . . . . . Relay Couplers Released . | . . . . . Fabnet Peak Effective % . | . . . . . Robots Rewired . | . . . . . Allies Hacked . | . . . . . Hacks Repelled . | . . . . . Allies | -11 -10 -10 -10 -9 -------- Run | Yrd Mat Min Exi Min Total Allies 2 | . . 2 . . Largest Group 2 | . . 2 1 . Highest-Rated Group 38 | . . 38 31 . Highest-Rated Ally 31 | . . 31 31 . Total Orders . | . . . . . Ally Attacks 2 | . . 2 . . Total Damage 21 | . . 21 . . Kills 1 | . . 1 . . Allies Corrupted . | . . . . . Allies Melted . | . . . . . Intel | -11 -10 -10 -10 -9 ------- Run | Yrd Mat Min Exi Min Active Infowar (turns) 258 | . 258 . . . Sensors 258 | . 258 . . . Robot Analysis Total 1 | . 1 . . . Derelict Logs Recovered 2 | . . 2 . . Drone Launches . | . . . . . Drone Recoveries . | . . . . . Exploration | -11 -10 -10 -10 -9 ------------- Run | Yrd Mat Min Exi Min Turns Passed 1967 | 3 452 1057 257 198 Spaces Moved 1470 | 1 331 802 214 122 Core 2 | . . . . 2 Treads . | . . . . . Legs 1468 | 1 331 802 214 120 Wheels . | . . . . . Hover . | . . . . . Flight . | . . . . . Fastest Speed 50 | 120 120 120 120 50 Average Speed 120 | 120 120 120 120 120 Slowest Speed 250 | 120 120 120 120 250 Overloaded Moves . | . . . . . Propulsion Burnouts . | . . . . . Robots Hopped . | . . . . . Potential Cave-ins . | . . . . . Cave-ins Triggered . | . . . . . Exploration Rate (%) 45 | 2 49 86 61 30 Regions Visited 4 Branch Regions 3 Pre-discovered Areas 2 | . . 2 . . Known Exits Taken 3 | . 1 1 1 . Unknown Exits Taken 1 | 1 . . . . Scrap Searched 1 | . . 1 . . Spaces Dug . | . . . . . Terrain Destroyed . | . . . . . Melee . | . . . . . Projectile . | . . . . . AOE . | . . . . . Terrain Rammed . | . . . . . Walls Destroyed . | . . . . . Machines Disabled . | . . . . . Actions | -11 -10 -10 -10 -9 --------- Run | Yrd Mat Min Exi Min Total 1584 | 4 362 860 214 144 Wait 41 | . 4 36 . 1 Move 1466 | . 330 801 213 122 Hop . | . . . . . Pick Up 10 | . 6 2 1 1 Fast Attach 2 | . 2 . . . Attach 3 | . . . . 3 Detach . | . . . . . Swap 5 | . 3 1 . 1 Drop 11 | 4 5 1 . 1 Fire 45 | . 12 18 . 15 Melee . | . . . . . Ram . | . . . . . Kick 1 | . . 1 . . Crush . | . . . . . Escape Stasis . | . . . . . Rewire . | . . . . . Trap . | . . . . . Miscellaneous . | . . . . . Route ------- -11/Scrapyard -10/Materials (discovered 3 exits: *Mat x2 / *Min) -10/Mines (discovered 3 exits: *Mat / *Exi / *Sub) -10/Exiles -9/Mines History --------- Turn | Location | Event 4 | -11/Scrapyard | Discovered new exit (range 0) 4 | -11/Scrapyard | Entered Materials 158 | -10/Materials | Discovered new exit (range 4) 213 | -10/Materials | Discovered new exit (range 11) 267 | -10/Materials | Discovered new exit (range 10) 285 | -10/Materials | Identified exit to Materials 307 | -10/Materials | Build established: Mutant 310 | -10/Materials | Central database locked down 450 | -10/Materials | Identified exit to Mines 456 | -10/Materials | Entered Mines 488 | -10/Mines | Met a Derelict bent on vengeance 537 | -10/Mines | Discovered new exit (range 10) 539 | -10/Mines | Learned location of Recycling (-9) 551 | -10/Mines | Identified exit to Subcaves 664 | -10/Mines | Found a Scrap Suit stashed away for nefarious purposes 667 | -10/Mines | Found Scrap Suit 843 | -10/Mines | Learned location of Storage (-9) 912 | -10/Mines | Learned Materials trap positions 991 | -10/Mines | Discovered exit to Materials (range 12) 1505 | -10/Mines | Deemed a non-threat by the Exiles lab entrance 1505 | -10/Mines | Discovered new exit (range 5) 1509 | -10/Mines | Identified exit to Exiles 1513 | -10/Mines | Entered Exiles 1513 | -10/Exiles | Accompanied by 1 ally 1542 | -10/Exiles | Met 8R-AWN 1543 | -10/Exiles | Led the pair of lost Derelicts to a safe place 1561 | -10/Exiles | Met EX-HEX 1596 | -10/Exiles | Met EX-BIN 1620 | -10/Exiles | Aligned with FarCom system 1621 | -10/Exiles | Given EX-Vault access code 1649 | -10/Exiles | Opened EX-Vault 1657 | -10/Exiles | Found Modified TNC 1680 | -10/Exiles | Warned to stay clear of 0b10 Research branches 1699 | -10/Exiles | Exiles lab attacked by MAIN.C 1756 | -10/Exiles | Discovered new exit (range 14) 1769 | -10/Exiles | Identified exit to Mines 1770 | -10/Exiles | Left Exiles lab with Modified TNC 1770 | -10/Exiles | Entered Mines 1841 | -9/Mines | Assembled infested the area 1846 | -9/Mines | Assisted by a Guerilla fighting off Assembled 1947 | -9/Mines | Core integrity fell below 50% 1965 | -9/Mines | Core integrity fell below 20% 1967 | -9/Mines | Released all parts (2) 1968 | -9/Mines | Destroyed by D-53 Grenadier with Mini Grenade Launcher Last Messages --------------- 01925_ Acquired 26 matter. 01926_ Acquired 6 matter. 01928_ Acquired 9 matter. 01935_ Acquired Phase Shifter. 01945_ R-06 Scavenger collects Fission Core. 01946_ T-07 Excavator destroyed. 01946_ R-06 Scavenger destroyed. 01947_ The unstable cave ceiling collapses. 01958_ Lgt. Cannon destroyed. 01960_ Aluminum Leg destroyed. 01962_ Flexi-carbon Leg destroyed. 01962_ Sml. Laser destroyed. 01964_ The unstable cave ceiling collapses. 01964_ Assault Rifle destroyed. 01966_ The unstable cave ceiling collapses. 01966_ Ion Engine destroyed. 01967_ Released Signal Interpreter. 01967_ Released Med. Storage Unit. [Achievement: Live, Flee, And Rebuild] 01967_ Dropped Lgt. Ion Engine. Map ----- +----------------------------------------------------+ | ?????????????????????????????????????????????????? | | ?????????????????????????????????????????????????? | | ?????????????????????????????????????????????????? | | ?????????????????????????????????????????????????? | | ?????????????????????????????????????????????????? | | ?????????????????????????????????????????????????? | | ?????????????????????????????????????????????????? | | ?????????????????????????????????????????????????? | | ?????????????????????????????????????????????????? | | ????????????????????????????????????? ??????????? | | ??????????????????????????????????? ??????????? | | ???????????????????????????????? ??????????? | | ??????????????????????????????? ?????????? | | ???????????????????????????????? #???#?????? | | ????????????????????????????????# #### ????? | | ????????????????????????????????? # ?????? | | ????????????????????????????????## " ??????? | | ????????????????????????????????? #??????? | | ?????????????????????????????????? ???????? | | ??????????????????????????????????# #???????? | | ???????????????????????######???### ####????? | | ??????????????????????## # ###?# # ###??? | | ?????????????????###### ### = #?## | | ?????????????????? #?# ! *%! ### | | ?????????????????????# ! ### %!= =% ## | | ?????????????????????# @!* ### = # # | | ?????????????????????## !* d # =# | | ?????????????????????# d # # %## | | ?????????????????????# ###### #### | | ?????????????????????## ######?#### #### | | ??????????????????????## #??????#% | | ???????????????????????# #??????# ## | | ??????????????????????# ####??????# ######## | | ?????????????????????# #?????????# #??????? | | ????????????????????# ##?????????# #??????? | | ????????????????????# ###??????????# #??????? | | ????????????????????# ##????????????# #??????? | | ????????????????????# ??????????????# #??????? | | ????????????????????## ?????????????## #??????? | | ?????????????????????## ?????????????# #??????? | | ??????????????????????## ????????????# ??????? | | ???????????????????????# ????????????## ??????? | | ???????????????????????? ??????????????? ??????? | | ????????????????????????????????????????###??????? | | ?????????????????????????????????????????????????? | | ?????????????????????????????????????????????????? | | ?????????????????????????????????????????????????? | | ?????????????????????????????????????????????????# | | ?????????????????????????????????????????????##### | | ????????????????????????????????????????????## | +----------------------------------------------------+ Best States ------------- Heat Dissipation 25 Energy Generation 10 Energy Capacity 250 Matter Stores 300 Matter Capacity 300 Sight Range 16 Robot Scan Range 14 Terrain Scan Density 10 Evasion (%) 55 Item Schematics ----------------- None Robot Schematics ------------------ None Fabricated ------------ Nothing Repaired ---------- Nothing Studied --------- None Alien Tech Used ----------------- None Achievements -------------- Live, Flee, And Rebuild Sixth Sense Challenges ------------ None Game ------ Seed PropulsionAmuletTelecube Manual? 0 Play Time 00:15:38 Cumulative 7.7 hours Start 2025.10.24 @ 23:12:00 End 2025.10.24 @ 23:25:52 Sessions 1 Manual Loads 0 Difficulty Rogue Special Mode None Game No. 10 Rogue 10 Adventurer 0 Explorer 0 Win Type - Total 0 Types 0/0/0/0/0/0/0/0/0/0 Lore% 28 Gallery% 16 Achievement% 18 Wizard Run 0 Options --------- Layout 0 ASCII 0 Keyboard 0 Movement Arrows Keybinds 0 Fullscreen 2 Font 18/X11 Map View 76x50 Zoom Use 0% Tactical HUD 1 Map Filters NONE Filters NONE Steam 1 RUN: e38b1d48-0ed3-4038-a0d1-b2eda88b7c68